Workbook

Sheet 一般公共预算收入调整
A1: 附表一
A2: 2022年区级一般公共预算收入调整草案表
F3: 单位：万元
A4: 项目 | B4: 2022年预算数 | D4: 2022年预算调整
B5: 金额 | C5: 占收入合计% | D5: 调整金额 | E5: 调整后预算数 | F5: 占收入合计%
A6: 一、增值税 | B6: =G6*1.1577525 -> 190,869 | C6: =B6/637560*100 -> 29.94 | D6: =E6-B6 -> -50,636 | E6: =115694.8+24539 -> 140,234 | F6: =E6/500000*100 -> 28.05 | G6: 164862
A7: 二、企业所得税 | B7: =G7*1.1577525 -> 55,874 | C7: 8.76 | D7: =E7-B7 -> -4,293 | E7: =51381+200 -> 51,581 | F7: =E7/500000*100 -> 10.32 | G7: 48261
A8: 三、个人所得税 | B8: 28,836 | C8: 4.52 | D8: -1,934 | E8: =26702+200 -> 26,902 | F8: 5.38 | G8: 24907
A9: 四、资源税 | B9: 379 | C9: 0.06 | D9: -48 | E9: =311+20 -> 331 | F9: 0.07 | G9: 327
A10: 五、城市维护建设税 | B10: 28,822 | C10: 4.52 | D10: -7,019 | E10: 21,803 | F10: 4.36 | G10: 24895
A11: 六、房产税 | B11: 23,879 | C11: 3.75 | D11: -1,940 | E11: =21924+15 -> 21,939 | F11: 4.39 | G11: 20625
A12: 七、印花税 | B12: 9,642 | C12: 1.51 | D12: -1,797 | E12: =7615+230 -> 7,845 | F12: 1.57 | G12: 8328
A13: 八、城镇土地使用税 | B13: 14,056 | C13: 2.20 | D13: -891 | E13: =13155+10 -> 13,165 | F13: 2.63 | G13: 12141
A14: 九、土地增值税 | B14: 124,662 | C14: 19.55 | D14: -81,559 | E14: =40403+2700 -> 43,103 | F14: 8.62 | G14: 107676
A15: 十、车船税 | B15: 2,334 | C15: 0.37 | D15: -107 | E15: 2,227 | F15: 0.45 | G15: 2016
A16: 十一、耕地占用税 | B16: 2,633 | C16: 0.41 | D16: -717 | E16: 1,916 | F16: 0.38 | G16: 2274
A17: 十二、契税 | B17: 97,935 | C17: 15.36 | D17: -17,674 | E17: =74161+6100 -> 80,261 | F17: 16.05 | G17: 84591
A18: 十三、环境保护税 | B18: 126 | C18: 0.02 | D18: -1 | E18: =124+1 -> 125 | F18: 0.03 | G18: 109
A19: 十四、其他税收收入 | B19: 8 | C19: 0.00 | D19: 295 | E19: 303 | F19: 0.06 | G19: 7
A20: 十五、专项收入 | B20: 17,504 | C20: 2.75 | D20: -3,323 | E20: =13181+1000 -> 14,181 | F20: 2.84 | G20: 15119
A21: 十六、行政事业性收费收入 | B21: 19,975 | C21: 3.13 | D21: -1,959 | E21: =16516+1500 -> 18,016 | F21: 3.60 | G21: 15780
A22: 十七、罚没收入 | B22: 3,000 | C22: 0.47 | D22: -1,093 | E22: =1407+500 -> 1,907 | F22: 0.38 | G22: 3214
A23: 十八、国有资本经营收入 | C23: 0.00 | D23: 0 | F23: 0.00 | G23: 41080
A24: 十九、国有资源（资产）有偿使用收入 | B24: 16,000 | C24: 2.51 | D24: 37,190 | E24: =43190+10000 -> 53,190 | F24: 10.64 | G24: 10271
A25: 二十、捐赠 | B25: 25 | C25: 0.00 | D25: -10 | E25: 15 | F25: 0.00 | G25: 25
A26: 二十一、其他收入 | B26: 1,000 | C26: 0.16 | D26: -44 | E26: 956 | F26: 0.19 | G26: 1105
A27: 一般公共预算收入合计 | B27: =SUM(B6:B26) -> 637,560 | C27: 100.00 | D27: -137,560 | E27: =SUM(E6:E26) -> 500,000 | F27: 100 | G27: =SUM(G6:G26) -> 587613
A28: 债务收入 | B28: 6,384 | D28: 616 | E28: 7,000
A29: 地方政府债券收入 | B29: 6,384 | D29: 616 | E29: 7,000
A30: 转移性收入 | B30: =B31+B32+B33+B34 -> 99,426 | C30: - | D30: 49,534 | E30: =E31+E32+E33+E34 -> 148,960 | F30: -
A31: 返还性收入 | B31: 38,465 | C31: - | D31: 0 | E31: 38,465 | F31: -
A32: 一般性转移支付收入 | B32: 17,201 | C32: - | D32: 59,594 | E32: 76,795 | F32: -
A33: 专项转移支付收入 | B33: 7,000 | C33: - | D33: 0 | E33: 7000 | F33: -
A34: 调用预算稳定调节基金及调入资金 | B34: =42418+726-6384 -> 36,760 | C34: - | D34: -10,060 | E34: 26700 | F34: -
A35: 上年结转及结余收入 | B35: 12,000 | C35: - | D35: 260 | E35: 12,260 | F35: -
A36: 总收入合计 | B36: =B27+B28+B30+B35 -> 755,370 | C36: - | D36: =E36-B36 -> -87,150 | E36: =E27+E28+E30+E35 -> 668,220 | F36: -
G39: =G27-36850 -> 550763

Sheet 一般公共预算支出调整
A1: 附表二
A2: 2022年区级一般公共预算支出调整草案表
F3: 单位 ：万元
A4: 项 目 | B4: 2022年预算数 | D4: 2022年预算调整
B5: 金额 | C5: 占本年支出合计% | D5: 调整金额 | E5: 调整后预算数 | F5: 占本年支出合计%
A6: 一、一般公共服务 | B6: 71,143 | C6: =B6/493064*100 -> 14.43 | D6: =E6-B6 -> 7,231 | E6: =83373.635658-5000 -> 78,374 | F6: =E6/418579*100 -> 18.72
A7: 二、国防 | B7: 41 | C7: =B7/493064*100 -> 0.01 | D7: -0 | E7: 41 | F7: =E7/418579*100 -> 0.01
A8: 三、公共安全 | B8: 17,385 | C8: 3.53 | D8: -1,998 | E8: 15,387 | F8: 3.68
A9: 四、教育 | B9: 100,845 | C9: 20.45 | D9: 2,853 | E9: 103,698 | F9: 24.77
A10: 五、科学技术 | B10: 1,430 | C10: 0.29 | D10: -717 | E10: 713 | F10: 0.17
A11: 六、文化旅游体育与传媒 | B11: 2,290 | C11: 0.46 | D11: -402 | E11: 1,888 | F11: 0.45
A12: 七、社会保障和就业 | B12: 103,968 | C12: 21.09 | D12: -15,300 | E12: 88,668 | F12: 21.18
A13: 八、卫生健康 | B13: 52,068 | C13: 10.56 | D13: -2,694 | E13: 49,374 | F13: 11.80
A14: 九、节能环保 | B14: 3,348 | C14: 0.68 | D14: -1,766 | E14: 1,582 | F14: 0.38
A15: 十、城乡社区 | B15: 41,942 | C15: 8.51 | D15: 6,390 | E15: 48,332 | F15: 11.55
A16: 十一、农林水 | B16: 10,699 | C16: 2.17 | D16: -4,870 | E16: 5,829 | F16: 1.39
A17: 十二、交通运输支出 | B17: 169 | C17: 0.03 | D17: -109 | E17: 60 | F17: 0.01
A18: 十三、资源勘探信息等 | B18: 10,746 | C18: 2.18 | D18: -8,435 | E18: 2,311 | F18: 0.55
A19: 十四、商业服务业等 | B19: 472 | C19: 0.10 | D19: -0 | E19: 472 | F19: 0.11
A20: 十五、金融 | B20: 509 | C20: 0.10 | D20: -269 | E20: 240 | F20: 0.06
A21: 十六、援助其他地区 | C21: 0.00 | D21: 737 | E21: 737 | F21: 0.18
A22: 十七、自然资源海洋气象等 | B22: 2,232 | C22: 0.45 | D22: -392 | E22: 1,840 | F22: 0.44
A23: 十八、住房保障 | B23: 16,469 | C23: 3.34 | D23: -1,517 | E23: 14,952 | F23: 3.57
A24: 十九、粮油物资支出 | C24: 0.00 | D24: 0 | F24: 0.00
A25: 二十、灾害防治及应急管理 | B25: 2,902 | C25: 0.59 | D25: -1,454 | E25: 1,448 | F25: 0.35
A26: 二十一、预备费 | B26: 10,000 | C26: 2.03 | D26: -10,000 | F26: 0.00
A27: 二十二、其他支出 | B27: 42,500 | C27: 8.62 | D27: -41,773 | E27: 727 | F27: 0.17
A28: 二十三、债券付息支出 | B28: 1,906 | C28: 0.39 | D28: 0 | E28: 1,906 | F28: 0.46
A29: 一般公共预算支出合计 | B29: =SUM(B6:B28) -> 493,064 | C29: 100.00 | D29: -74,485 | E29: =SUM(E6:E28) -> 418,579 | F29: 100.00
A30: 转移性支出 | B30: =SUM(B31:B33) -> 262,306 | C30: - | D30: -12,665 | E30: =SUM(E31:E33) -> 249,641 | F30: -
A31: 上解上级支出 | B31: 255,213 | C31: - | D31: -12,665 | E31: =260867-18579+260 -> 242,548 | F31: -
A32: 调出资金及债务还本支出 | B32: 7,093 | C32: - | D32: 0 | E32: 7,093 | F32: -
A33: 补充预算稳定调节基金 | C33: - | F33: -
A34: 结转下年支出 | C34: - | F34: -
A35: 支出总计 | B35: =B29+B30 -> 755,370 | C35: - | D35: =E35-B35 -> -87,150 | E35: =E30+E29+E34 -> 668,220 | F35: -

Sheet 政府性基金收入调整
A1: 附表三
A2: 2022年区级政府性基金收入调整草案表
F3: 单位：万元
A4: 项 目 | B4: 2022年预算数 | D4: 2022年调整数
B5: 金额 | C5: 占本年收入合计% | D5: 调整金额 | E5: 调整后预算数 | F5: 占本年收入合计%
A6: 一、国有土地使用权出让收入
A7: 二、国有土地收益基金收入
A8: 三、农业土地开发资金收入
A9: 四、城市基础设施配套费收入
A10: 五、彩票公益金收入
A11: 六、污水处理费收入
A12: 七、其他政府性基金收入
A13: 八、专项债务对应项目专项收入
A14: 本年收入合计
A15: 债务转贷收入 | D15: 80,100 | E15: 80,100
A16: 地方政府专项债券转贷收入 | D16: 80,100 | E16: 80,100
A17: 转移性收入 | B17: 610,725 | D17: =E17-B17 -> -435,511 | E17: =SUM(E18:E20) -> 175,214
A18: 上级补助收入 | B18: 577,265 | D18: =E18-B18 -> -435,701 | E18: =152871-11307 -> 141,564
A19: 调入资金 | B19: 8,884 | D19: =E19-B19 -> 190 | E19: 9,074
A20: 上年结转收入 | B20: 24,576 | E20: 24,576
A21: 收入总计 | B21: 610,725 | D21: =E21-B21 -> -355,411 | E21: =E17+E15 -> 255,314

Sheet 政府性基金支出调整
A1: 附表四
A2: 2022年区级政府性基金支出调整草案表
F3: 单位：万元
A4: 项 目 | B4: 2022年预算数 | D4: 2022年预算调整数
B5: 金额 | C5: 占本年支出合计% | D5: 调整金额 | E5: 调整后预算数 | F5: 占本年支出合计%
A6: 一、文化旅游体育与传媒支出 | B6: 51 | C6: =B6/610725*100 -> 0.01 | D6: =E6-B6 -> 29 | E6: 80
A7: 二、社会保障和就业支出
A8: 三、城乡社区支出 | B8: 601,510 | C8: =B8/610725*100 -> 98.49 | D8: =E8-B8 -> -433,694 | E8: =179123-11307 -> 167,816 | F8: =E8/241925*100 -> 69.37
A9: 四、农林水支出
A10: 五、交通运输支出
A11: 六、资源勘探信息支出
A12: 七、金融支出
A13: 八、其他支出 | B13: 280 | C13: =B13/610725*100 -> 0.05 | D13: =E13-B13 -> 64,675 | E13: 64,955 | F13: =E13/241925*100 -> 26.85
A14: 其中：彩票公益金安排支出 | B14: 280 | D14: =E14-B14 -> -25 | E14: 255
A15: 其他地方自行试点项目收益专项债券收入安排的支出 | D15: =E15-B15 -> 64,700 | E15: 64,700 | F15: =E15/241925*100 -> 26.74
A16: 九、债务付息支出 | B16: 8,884 | C16: =B16/610725*100 -> 1.45 | D16: =E16-B16 -> 190 | E16: 9,074 | F16: =E16/241925*100 -> 3.75
A17: 十、抗疫特别国债的支出
A18: 本年支出合计 | B18: 610,725 | C18: =B18/610725*100 -> 100.00 | D18: =E18-B18 -> -368,800 | E18: =E6+E8+E13+E16 -> 241,925 | F18: =E18/241925*100 -> 100.00
A19: 债务还本支出
A20: 地方政府其他专项债务还本支出
A21: 转移性支出 | D21: =E21-B21 -> 13,389 | E21: =SUM(E22:E24) -> 13,389
A22: 上解上级支出 | D22: =E22-B22 -> 54 | E22: 54
A23: 调出资金
A24: 结转下年支出 | D24: =E24-B24 -> 13,335 | E24: 13,335
A25: 支出总计 | B25: =B18 -> 610,725 | D25: =E25-B25 -> -355,411 | E25: =E18+E21 -> 255,314

Sheet 国有资本收入预算
A1: 附表五
A2: 2022年区国有资本经营预算收入调整草案表
D3: 单位：万元
A4: 项目 | B4: 2022年预算数 | C4: 2022年预算调整数
C5: 调整金额 | D5: 调整后预算数
A6: 一、利润收入 | B6: 628 | C6: =D6-B6 -> -360 | D6: 268
A7: 建筑施工企业利润收入 | B7: 628 | C7: =D7-B7 -> -360 | D7: 268
A8: 二、股利股息收入
A9: 三、产权转让收入
A10: 四、清算收入
A11: 五、其他国有资本经营预算收入
A12: 本年收入合计 | B12: 628 | C12: -360 | D12: 268
A13: 上级补助收入 | B13: 254 | C13: 78 | D13: 331
A14: 上年结转收入 | B14: 323 | D14: 323
A15: 收入总计 | B15: 1205 | C15: -282 | D15: 923

Sheet 国有资本支出预算
A1: 附表六
A2: 2022年区国有资本经营预算支出调整草案表
D3: 单位：万元
A4: 项目 | B4: 2022年预算数 | C4: 2022年预算调整数
C5: 调整金额 | D5: 调整后预算数
A6: 一、社会保障和就业支出
A7: 二、国有资本经营预算支出 | B7: 1,017 | C7: =D7-B7 -> -506 | D7: 511
A8: 解决历史遗留问题及改革支出 | B8: 577 | C8: =D8-B8 -> -389 | D8: 188
A9: 国有企业退休人员社会化管理补助支出 | B9: 577 | C9: -389 | D9: 188
A10: 其他国有资本经营预算支出 | B10: 440 | C10: -117 | D10: 323
A11: 其他国有资本经营预算支出 | B11: 440 | C11: -117 | D11: 323
A12: 本年支出合计 | B12: 1,017 | C12: -506 | D12: 511
A13: 调出资金 | B13: 188 | C13: -107 | D13: 81
A14: 结转下年支出 | C14: 331 | D14: 331
A15: 支出总计 | B15: 1,205 | C15: -282 | D15: 923
